Workbook

Sheet Cover
B1: Registered User: | G1: Single User License | AF1: © 2020 CivilWeb
B2: Your Logo / Company Details Here | G2: Project: | AF2: By:
G3: Calculation: | M3: Miragrid MSE Wall Design
G4: FHWA NHI-10-025 | AF4: Approved:
G5: Sheet Number: | M5: Cover Sheet | T5: Date:
H7: Although all care and attention has been taken to ensure that this program is accurate, CivilWeb gives no guarentee that it is error free. In no event will Civil Web accept any responsibility for any errors or omissions from the program or from the user of the program, or for any special, incedental or consequential damages whatsoever arising from use of this program.
H14: This program should only be used by a suitably qualified Civil or Structural Engineer, and suitable efforts should be taken to verify the results.
H18: Reverse-engineering or decompiling of this program is not allowed.
H20: This program is registered to a single user, and should not be used by any other.
H23: Registered User;
H24: Single User License
H26: By using this program you confirm your understanding and agreement with the above terms and conditions.
H29: This program remains the property of CivilWeb.
H30: www.civilweb-spreadsheets.com
H32: Revision Schedule
H34: Rev | J34: Changes | Z34: Date
H35: 0 | J35: Original | Z35: 2020-08-01

Sheet MSE Wall - Miragrid
B1: Registered User: | G1: Single User License | AF1: © 2020 CivilWeb
B2: Your Logo / Company Details Here | G2: Project: | AF2: By: | BB2: Geometry
G3: Calculation: | M3: Miragrid MSE Wall Design | BB3: Exposed Wall Height, He | BC3: =$BK$4 -> 19.68498 | BD3: ft
G4: FHWA NHI-10-025 | AF4: Approved: | BB4: Angle of Facing Units | BC4: =$Y$11 -> 3 | BD4: Degrees | BK4: =Y9*3.28083 -> 19.68498 | BS4: 10
G5: Sheet Number: | M5: 1 | T5: Date: | BB5: Effective Angle of Facing Units, θ | BC5: =IF(BC4<10,0,BC4) -> 0 | BD5: Degrees | BK5: =Y10*3.28083 -> 1.640415 | BQ5: 0 | BR5: 0 | BS5: =$BS$4/MAX($BQ$5:$BR$36)*BQ5 -> 0 | BT5: 0 | CA5: Tensile Strength | CB5: 5% strain | CC5: Creep Rupture Strength | CD5: Long Term Design Strength | CE5: RFCR | CF5: RFID | CG5: RFD
BB6: Backslope Angle | BC6: =$Y$12 -> 26.6 | BD6: Degrees | BQ6: =BQ5 -> 0 | BR6: =BK5+BR5 -> 1.640415 | BS6: 0 | BT6: 0.5263157895 | BZ6: Miragrid 2XT | CA6: 2000 | CC6: 1389 | CD6: 1202 | CE6: =$X$68 -> 1.44 | CF6: =$X$69 -> 1.1 | CG6: =$X$70 -> 1.05 | CH6: =CA6/CE6/CF6/CG6*0.001 -> 1.202501203 | CI6: Miragrid 2XT
H7: MSE Geometría y Cargas | BB7: Backslope Height | BC7: =$BK$9 -> 9.84249 | BD7: ft | BQ7: =BQ6 -> 0 | BR7: =BR6+BK4 -> 21.325395 | BS7: 0 | BT7: 6.842105263 | BZ7: Miragrid 3XT | CA7: 3500 | CB7: 1056 | CC7: 2431 | CD7: 2104 | CE7: =$X$68 -> 1.44 | CF7: =$X$69 -> 1.1 | CG7: =$X$70 -> 1.05 | CH7: 2.104377104 | CI7: Miragrid 3XT
BB8: Toe Slope Angle | BC8: =$Y$15 -> Horizontal | BQ8: =BK11 -> 19.68498 | BR8: =BR7 -> 21.325395 | BS8: 6.315789474 | BT8: 6.842105263 | BZ8: Miragrid 5XT | CA8: 4700 | CB8: 1740 | CC8: 3264 | CD8: 2825 | CE8: 1.44 | CF8: 1.1 | CG8: 1.05 | CH8: 2.825877826 | CI8: Miragrid 5XT
H9: Altura Expuesta MSE , Ha | Y9: 6 | AB9: m | BB9: Length of Reinforcement, L | BC9: =$BK$11 -> 19.68498 | BD9: ft | BF9: Yes | BK9: =Y14*3.28083 -> 9.84249 | BQ9: =BQ8 -> 19.68498 | BR9: =BR5 -> 0 | BS9: 6.315789474 | BT9: 0 | BZ9: Miragrid 7XT | CA9: 5900 | CB9: 2160 | CC9: 4097 | CD9: 3547 | CE9: 1.44 | CF9: 1.1 | CG9: 1.05 | CH9: 3.547378547 | CI9: Miragrid 7XT
H10: ="Profundidad de Desplante, Minimo "&ROUNDUP(BC41*0.3048,2)&"m" -> Profundidad de Desplante, Minimo 0.61m | Y10: 0.5 | AB10: m | BB10: Broken Backslope? | BC10: =$Y$13 -> Yes | BF10: No | BQ10: =BQ5 -> 0 | BR10: =BR5 -> 0 | BS10: 0 | BT10: 0 | BZ10: Miragrid 8XT | CA10: 7400 | CB10: 2520 | CC10: 5139 | CD10: 4449 | CE10: 1.44 | CF10: 1.1 | CG10: 1.05 | CH10: 4.449254449 | CI10: Miragrid 8XT
H11: Angulo de las unidades de fachada | Y11: 3 | AB11: Degrees | BK11: =Y16*3.28083 -> 19.68498 | BQ11: =BQ5 -> 0 | BR11: =BR6 -> 1.640415 | BS11: -1 | BT11: =$BS$4/MAX($BQ$5:$BR$36)*BR11 -> 0.5263157895 | BZ11: Miragrid 10XT | CA11: 9500 | CB11: 3120 | CC11: 6597 | CD11: 5712 | CE11: 1.44 | CF11: 1.1 | CG11: 1.05 | CH11: 5.711880712 | CI11: Miragrid 10XT
H12: ángulo del talud trasero(cresta) | Y12: 26.6 | AB12: Degrees | BQ12: =BQ11-1 -> -1 | BR12: =BR11 -> 1.640415 | BS12: =BS5 -> 0 | BT12: 0.5263157895 | BZ12: Miragrid 20XT | CA12: 13705 | CB12: 5340 | CC12: 9517 | CD12: 8240 | CE12: 1.44 | CF12: 1.1 | CG12: 1.05 | CH12: 8.24013949 | CI12: Miragrid 20XT
H13: Talud trasero "Broken" | Y13: Yes | BB13: Loading | BK13: =Y18*3.28083 -> 1.640415 | BR13: =BR5 -> 0 | BS13: -0.5 | BT13: 0 | BU13: =Y10&"m" -> 0.5m | BZ13: Miragrid 22XT | CA13: 20559 | CB13: 6700 | CC13: 14277 | CD13: 12361 | CE13: 1.44 | CF13: 1.1 | CG13: 1.05 | CH13: 12.36111111 | CI13: Miragrid 22XT
H14: Altura del Talud Trasero | Y14: 3 | AB14: m | BR14: =AVERAGE(BR13,BR15) -> 0.8202075 | BS14: =BS13 -> -0.5 | BT14: 0.2631578947 | BZ14: Miragrid 24XT | CA14: 27415 | CB14: 7000 | CC14: 19038 | CD14: 16483 | CE14: 1.44 | CF14: 1.1 | CG14: 1.05 | CH14: 16.48328523 | CI14: Miragrid 24XT
H15: Ángulo del pie | Y15: Horizontal | BR15: =BR6 -> 1.640415 | BS15: =BS14 -> -0.5 | BT15: 0.5263157895
H16: Longitud de Refuerzo, L | Y16: 6 | AB16: m | BR16: =BR15 -> 1.640415 | BS16: =BS15 -> -0.5 | BT16: 0.5263157895 | BU16: =Y9&"m" -> 6m
H17: Vida de Diseño | Y17: 100 | AB17: Years | BB17: Performance | BR17: =AVERAGE(BR16,BR18) -> 11.482905 | BS17: =BS16 -> -0.5 | BT17: 3.684210526
H18: Carga de Tránsito, heq | Y18: 0.5 | AB18: m | BF18: Horizontal | BG18: =BC3/20 -> 0.984249 | BK18: =Y23*6.3658803480334 -> 120.9517266 | BR18: =BR8 -> 21.325395 | BS18: =BS17 -> -0.5 | BT18: 6.842105263
BB19: Design Life | BC19: =$Y$17 -> 100 | BD19: Years | BF19: 3H:1V | BG19: =BC3/10 -> 1.968498 | BK19: =Y24*0.020885434273039 -> 6.265630282 | BQ19: =BQ5 -> 0 | BS19: =$BS$4/MAX($BQ$5:$BR$36)*BQ19 -> 0 | BT19: -0.5 | BU19: =Y16&"m" -> 6m
H20: Detalles del Suelo | BF20: 2H:1V | BG20: =BC3/7 -> 2.81214 | BK20: =Y25*0.020885434273039 -> 8.354173709 | BQ20: =AVERAGE(BQ19,BQ21) -> 9.84249 | BS20: 3.157894737 | BT20: =BT19 -> -0.5
BF21: 1.5H:1V | BG21: =BC3/5 -> 3.936996 | BQ21: =BQ9 -> 19.68498 | BS21: 6.315789474 | BT21: =BT20 -> -0.5
H22: Suelo de Cimentación, Ángulo de Fricción, φ'f | Y22: 30 | AB22: Degrees | BK22: =Y27*6.3658803480334 -> 120.9517266 | BS22: 0 | BT22: =$BS$4/MAX($BQ$5:$BR$36)*BR22 -> 0
H23: Suelo de Cimentación, Densidad, γf | Y23: 19 | AB23: kN/m3 | BB23: Soil Details | BQ23: =BQ5 -> 0 | BR23: =BR7 -> 21.325395 | BS23: 0 | BT23: 6.842105263
H24: Suelo de Cimentación Factorada Limite de Servicio, qnf-ser | Y24: 300 | AB24: kN/m2 | BB24: Foundation Soil, Friction Angle, φ'f | BC24: =$Y$22 -> 30 | BD24: degrees | BQ24: =MAX(BQ4:BR21)*COS(RADIANS(Y12)) -> 19.06819229 | BR24: =BR23+MAX(BQ4:BR21)*SIN(RADIANS(Y12)) -> 30.87403441 | BS24: 6.11789741 | BT24: 9.905720075
H25: Suelo de Cimentación Factorada Limite de Resistencia, qnf-str | Y25: 400 | AB25: kN/m2 | BB25: Foundation Soil, density, γf | BC25: =$BK$18 -> 120.9517266 | BD25: pcf | BK25: =Y30*6.3658803480334 -> 120.9517266 | BQ25: =BQ24 -> 19.06819229 | BR25: =BR24 -> 30.87403441 | BS25: 6.11789741 | BT25: 9.905720075
H26: Suelo de Relleno Estructural, Angulo de Fricción φ'r | Y26: 34 | AB26: Degrees | BB26: Factored Bearing Resistance of Foundation Soil | BK26: =X59*3.28083 -> 0.656166 | BS26: 0 | BT26: 0
H27: Suelo de Relleno Estructural, Densidad, γr | Y27: 19 | AB27: kN/m3 | BB27: Service Limit, qnf-ser | BC27: =$BK$19 -> 6.265630282 | BD27: ksf | BK27: =X60*3.28083 -> 0.656166 | BQ27: =BQ23 -> 0 | BR27: =BR23 -> 21.325395 | BS27: 0 | BT27: 6.842105263
H28: Suelo de Relleno Estructural Coeficiente de Uniformidad, Cu | Y28: 7 | BB28: Strength Limit, qnf-str | BC28: =$BK$20 -> 8.354173709 | BD28: ksf | BK28: =X61*3.28083 -> 2.4606225 | BQ28: =IF(Y12=0,BQ29,MIN(BQ25*1.5,BK9/TAN(RADIANS(Y12)))) -> 19.65499835 | BR28: =BR27+BK9 -> 31.167885 | BS28: 6.30617007 | BT28: 10
H29: Suelo de Retención, Ángulo de Fricción, φ'b | Y29: 30 | AB29: Degrees | BB29: Groundwater?? | BJ29: 0 | BK29: 1 | BQ29: =BQ25*1.5 -> 28.60228844 | BR29: =BR28 -> 31.167885 | BS29: 9.176846115 | BT29: 10
H30: Suelo de Retención, Densidad, γb | Y30: 19 | AB30: kN/m3 | BB30: Reinforced Wall Fill, Friction Angle, φ'r | BC30: =$Y$26 -> 34 | BD30: degrees | BJ30: 100 | BK30: 1 | BS30: 0 | BT30: 0
BB31: Reinforced Wall Fill, density, γr | BC31: =$BK$22 -> 120.9517266 | BD31: pcf | BQ31: =IF($Y$13="No",BQ23,BQ27) -> 0 | BR31: 21.325395 | BS31: 0 | BT31: 6.842105263
B32: Your Logo / Company Details Here | G32: Project: | AF32: By: | BJ32: 0 | BK32: =MAX(X84,X95,P110,T110,X110,AB110) -> 0.8630415732 | BL32: =MAX(P110:AE110) -> 0.79638482 | BQ32: 19.65499835 | BR32: 31.167885 | BS32: 6.30617007 | BT32: 10
G33: Calculation: | M33: Miragrid MSE Wall Design | BJ33: =Y16 -> 6 | BK33: =BK32 -> 0.8630415732 | BL33: =BL32 -> 0.79638482 | BQ33: 28.60228844 | BR33: 31.167885 | BS33: 9.176846115 | BT33: 10
G34: FHWA NHI-10-025 | AF34: Approved: | BB34: Reinforced Wall Fill Coefficient of Uniformity, Cu | BC34: =$Y$28 -> 7 | BJ34: =BJ33 -> 6 | BK34: 0 | BL34: 0 | BQ34: =BQ32 -> 19.65499835 | BR34: =IF(Y13="No",BR36,BR32) -> 31.167885 | BS34: =$BS$4/MAX($BQ$5:$BR$31)*BQ34 -> 6.30617007 | BT34: 10 | BU34: =IF(OR(Y14="",Y14=0,Y12=0,Y13="No"),"",Y14&"m") -> 3m
G35: Sheet Number: | M35: 2 | T35: Date: | BB35: Retained Backfill, Friction Angle, φ'b | BC35: =$Y$29 -> 30 | BD35: degrees | BQ35: =BQ34 -> 19.65499835 | BR35: =AVERAGE(BR34,BR36) -> 26.24664 | BS35: 6.30617007 | BT35: 8.421052632
BB36: Retained Backfill, density, γb | BC36: =$BK$25 -> 120.9517266 | BD36: pcf | BQ36: =BQ35 -> 19.65499835 | BR36: =BR31 -> 21.325395 | BS36: 6.30617007 | BT36: 6.842105263
H37: Load Combination Factors
BK38: x | BL38: y
H39: Load Factors EV | V39: Load Factors EH | BJ39: Layer 1 | BK39: =$BQ$5 -> 0 | BL39: =$BC$42-VLOOKUP(BJ39,$BB$298:$BC$347,2,FALSE) -> 21.028814 | BM39: =$BS$4/MAX($BQ$5:$BR$36)*BK39 -> 0 | BN39: =IFERROR($BS$4/MAX($BQ$5:$BR$36)*BL39,NA()) -> 6.746949304
H40: Strength 1 (Max) | N40: 1.35 | V40: Strength 1 (Max) | AB40: 1.5 | BK40: =AVERAGE(BK39,BK41) -> 9.84249 | BL40: =BL39 -> 21.028814 | BM40: 3.157894737 | BN40: 6.746949304
H41: Strength 2 (Min) | N41: 1 | V41: Strength 2 (Min) | AB41: 0.9 | BB41: Minimum Embedment Depth | BC41: =MAX(2,VLOOKUP(BC8,$BF$18:$BG$21,2,FALSE)) -> 2 | BD41: ft | BK41: =$BQ$8 -> 19.68498 | BL41: =BL40 -> 21.028814 | BM41: 6.315789474 | BN41: 6.746949304
H42: Service 1 | N42: 1 | V42: Service 1 | AB42: 1 | BB42: Design Height of Wall, H | BC42: =BC41+BC3 -> 21.68498 | BD42: ft | BJ42: Layer 2 | BK42: =$BQ$5 -> 0 | BL42: =$BC$42-VLOOKUP(BJ42,$BB$298:$BC$347,2,FALSE) -> 18.5681915 | BM42: 0 | BN42: 5.95747562
H43: Load Factors ES | V43: Load Factors LL | BK43: =AVERAGE(BK42,BK44) -> 9.84249 | BL43: =BL42 -> 18.5681915 | BM43: 3.157894737 | BN43: 5.95747562
H44: Strength 1 (Max) | N44: 1.5 | V44: Strength 1 (Max) | AB44: 1.75 | BB44: Unfactored Loads | BK44: =$BQ$8 -> 19.68498 | BL44: 18.5681915 | BM44: 6.315789474 | BN44: 5.95747562
H45: Strength 2 (Min) | N45: 0.75 | V45: Strength 2 (Min) | AB45: 1.75 | BB45: Angle I | BC45: =DEGREES(ATAN(BC7/(2*BC42))) -> 12.78627704 | BD45: degrees | BJ45: Layer 3 | BK45: =$BQ$5 -> 0 | BL45: =$BC$42-VLOOKUP(BJ45,$BB$298:$BC$347,2,FALSE) -> 16.107569 | BM45: 0 | BN45: 5.168001935
H46: Service 1 | N46: 1 | V46: Service 1 | AB46: 1 | BB46: Slope Crest, h | BC46: =IF(BC10="Yes",BC42+BC7,BC42+BC9*TAN(RADIANS(BC6))) -> 31.52747 | BD46: ft | BK46: =AVERAGE(BK45,BK47) -> 9.84249 | BL46: =BL45 -> 16.107569 | BM46: 3.157894737 | BN46: 5.168001935
BB47: Nominal Slope of Backfill Behind Wall, β | BC47: =IF(BC10="Yes",BC45,BC6) -> 12.78627704 | BD47: degrees | BK47: =$BQ$8 -> 19.68498 | BL47: 16.107569 | BM47: 6.315789474 | BN47: 5.168001935
H48: Resistance Factors | BB48: Angle of Friction betweeen retained backfill and reinforced soil, δ | BC48: =BC47 -> 12.78627704 | BD48: degrees | BJ48: Layer 4 | BK48: =$BQ$5 -> 0 | BL48: =$BC$42-VLOOKUP(BJ48,$BB$298:$BC$347,2,FALSE) -> 13.6469465 | BM48: 0 | BN48: 4.378528251
BB49: Total Height of Wall and Slope | BC49: =MIN(BC46,BC42+BC9*TAN(RADIANS(BC6))) -> 31.52747 | BD49: ft | BK49: =AVERAGE(BK48,BK50) -> 9.84249 | BL49: =BL48 -> 13.6469465 | BM49: 3.157894737 | BN49: 4.378528251
H50: Sliding of MSE Wall on Foundation Soil, φs | V50: 1 | BK50: =$BQ$8 -> 19.68498 | BL50: 13.6469465 | BM50: 6.315789474 | BN50: 4.378528251
H51: Bearing Resistance, φb | V51: 0.65 | BJ51: Layer 5 | BK51: =$BQ$5 -> 0 | BL51: =$BC$42-VLOOKUP(BJ51,$BB$298:$BC$347,2,FALSE) -> 11.186324 | BM51: 0 | BN51: 3.589054567
H52: Tensile Resistance & Connectors, φt | V52: 0.9 | BK52: =AVERAGE(BK51,BK53) -> 9.84249 | BL52: =BL51 -> 11.186324 | BM52: 3.157894737 | BN52: 3.589054567
H53: Pullout Resistance, φp | V53: 0.9 | BK53: =$BQ$8 -> 19.68498 | BL53: 11.186324 | BM53: 6.315789474 | BN53: 3.589054567
H54: Maximum Sliding Load Factor, γLS | V54: 1.75 | BB54: r | BC54: =(1+SQRT(SIN(RADIANS(BC35+BC48))*SIN(RADIANS(BC35-BC47))/(SIN(RADIANS(90-BC5-BC48))*SIN(RADIANS(90-BC5+BC47)))))^2 -> 2.130878767 | BJ54: Layer 6 | BK54: =$BQ$5 -> 0 | BL54: =$BC$42-VLOOKUP(BJ54,$BB$298:$BC$347,2,FALSE) -> 8.7257015 | BM54: 0 | BN54: 2.799580883
BB55: Kab | BC55: =IF(BC6=0,(1-SIN(RADIANS(BC35)))/(1+SIN(RADIANS(BC35))),SIN(RADIANS(90-BC5+BC35))^2/(BC54*SIN(RADIANS(90-BC5))^2*SIN(RADIANS(90-BC5-BC48)))) -> 0.360917354 | BK55: =AVERAGE(BK54,BK56) -> 9.84249 | BL55: =BL54 -> 8.7257015 | BM55: 3.157894737 | BN55: 2.799580883
H56: Soil Reinforcement Details - Steel Strips | BB56: Traffic Load, heq | BC56: =$BK$13 -> 1.640415 | BD56: ft | BE56: cannot be surcharge loads on sloped backfills | BK56: =$BQ$8 -> 19.68498 | BL56: 8.7257015 | BM56: 6.315789474 | BN56: 2.799580883
BB57: F1 | BC57: =0.5*BC36*BC46^2*BC55*0.001 -> 21.69542108 | BD57: k/lft | BJ57: Layer 7 | BK57: =$BQ$5 -> 0 | BL57: =$BC$42-VLOOKUP(BJ57,$BB$298:$BC$347,2,FALSE) -> 6.265079 | BM57: 0 | BN57: 2.010107198
H58: Vertical Layout of Soil Reinforcements | BB58: FH1 | BC58: =BC57*COS(RADIANS(BC45)) -> 21.15742648 | BD58: k/lft | BK58: =AVERAGE(BK57,BK59) -> 9.84249 | BL58: =BL57 -> 6.265079 | BM58: 3.157894737 | BN58: 2.010107198
H59: Depth to Top Layer | X59: 0.2 | AA59: m | BB59: FV1 | BC59: =BC57*SIN(RADIANS(BC45)) -> 4.801520651 | BD59: k/lft | BK59: =$BQ$8 -> 19.68498 | BL59: 6.265079 | BM59: 6.315789474 | BN59: 2.010107198
H60: Height of Bottom Layer | X60: 0.2 | AA60: m | BB60: q | BC60: =BC56*BC36 -> 198.4110266 | BD60: psf | BJ60: Layer 8 | BK60: =$BQ$5 -> 0 | BL60: =$BC$42-VLOOKUP(BJ60,$BB$298:$BC$347,2,FALSE) -> 3.8044565 | BM60: 0 | BN60: 1.220633514
H61: Spacing of Layers | X61: 0.75 | AA61: m | BB61: F2 | BC61: =BC60*BC46*BC55*0.001 -> 2.257681582 | BD61: k/lft | BK61: =AVERAGE(BK60,BK62) -> 9.84249 | BL61: =BL60 -> 3.8044565 | BM61: 3.157894737 | BN61: 1.220633514
H62: Pullout Failure Factors | BB62: FH2 | BC62: =BC61*COS(RADIANS(BC45)) -> 2.201696474 | BD62: k/lft | BK62: =$BQ$8 -> 19.68498 | BL62: 3.8044565 | BM62: 6.315789474 | BN62: 1.220633514
H63: Scale Correction Factor, α | X63: 0.8 | BB63: FV2 | BC63: =BC61*SIN(RADIANS(BC45)) -> 0.4996586469 | BD63: k/lft | BJ63: Layer 9 | BK63: =$BQ$5 -> 0 | BL63: =$BC$42-VLOOKUP(BJ63,$BB$298:$BC$347,2,FALSE) -> 1.343834 | BM63: 0 | BN63: 0.4311598301
H64: Pullout Resistance Factor, F* | X64: 0.45 | BB64: V1 | BC64: =BC31*BC42*BC9*0.001 -> 51.63046973 | BD64: k/lft | BK64: =AVERAGE(BK63,BK65) -> 9.84249 | BL64: =BL63 -> 1.343834 | BM64: 3.157894737 | BN64: 0.4311598301
H65: C | X65: 2 | BB65: V2 | BC65: =IF(BC10="Yes",0.5*BC36*BC9*(BC46-BC42)*0.001,0.5*BC9^2*TAN(RADIANS(BC6))*BC36*0.001) -> 11.71715127 | BD65: k/lft | BK65: =$BQ$8 -> 19.68498 | BL65: 1.343834 | BM65: 6.315789474 | BN65: 0.4311598301
H66: Coverage Ratio, Rc | X66: 1 | BB66: FT | BC66: =0.5*BC55*BC36*BC49^2*0.001 -> 21.69542108 | BD66: k/lft | BJ66: Layer 10 | BK66: =$BQ$5 -> 0 | BL66: =$BC$42-VLOOKUP(BJ66,$BB$298:$BC$347,2,FALSE) -> 0.656166 | BM66: 0 | BN66: 0.2105263158
H67: Soil Reinforcement Resistance, Tal | BB67: FH | BC67: =BC66*COS(RADIANS(BC47)) -> 21.15742648 | BD67: k/lft | BK67: =AVERAGE(BK66,BK68) -> 9.84249 | BL67: =BL66 -> 0.656166 | BM67: 3.157894737 | BN67: 0.2105263158
H68: Creep Factor, RFCR | X68: 1.44 | BK68: =$BQ$8 -> 19.68498 | BL68: 0.656166 | BM68: 6.315789474 | BN68: 0.2105263158
H69: Durability Factor, RFD | X69: 1.1 | BB69: MV1 | BC69: =BC64*BC9*0.5 -> 508.172382 | BD69: k-ft/ft | BJ69: Layer 11 | BK69: =$BQ$5 -> 0 | BL69: =$BC$42-VLOOKUP(BJ69,$BB$298:$BC$347,2,FALSE) ->  | BM69: 0
H70: Installation Factor, RFID | X70: 1.05 | BB70: MV2 | BC70: =BC65*2/3*BC9 -> 153.7679256 | BD70: k-ft/ft | BK70: =AVERAGE(BK69,BK71) -> 9.84249 | BL70: =BL69 ->  | BM70: 3.157894737
BB71: FTV | BC71: =0.5*BC31*BC46^2*BC55*SIN(RADIANS(BC6))*0.001 -> 9.714321955 | BD71: k/lft | BK71: =$BQ$8 -> 19.68498 | BM71: =$BS$4/MAX($BQ$5:$BR$36)*BK71 -> 6.315789474 | BN71: =IFERROR($BS$4/MAX($BQ$5:$BR$36)*BL71,NA()) -> 
B72: Your Logo / Company Details Here | G72: Project: | AF72: By: | BB72: MFTV | BC72: =BC71*BC9 -> 191.2262334 | BD72: k-ft/ft | BJ72: Layer 12 | BK72: =$BQ$5 -> 0 | BL72: =$BC$42-VLOOKUP(BJ72,$BB$298:$BC$347,2,FALSE) ->  | BM72: 0
G73: Calculation: | M73: Miragrid MSE Wall Design | BB73: FTH | BC73: =0.5*BC31*BC46^2*BC55*COS(RADIANS(BC6))*0.001 -> 19.39905268 | BD73: k/lft | BK73: =AVERAGE(BK72,BK74) -> 9.84249 | BL73: =BL72 ->  | BM73: 3.157894737
G74: FHWA NHI-10-025 | AF74: Approved: | BB74: MFTH (MF1) | BC74: =BC73*BC46/3 -> 203.8676838 | BD74: k-ft/ft | BK74: =$BQ$8 -> 19.68498 | BM74: 6.315789474
G75: Sheet Number: | M75: 3 | T75: Date: | BJ75: Layer 13 | BK75: =$BQ$5 -> 0 | BL75: =$BC$42-VLOOKUP(BJ75,$BB$298:$BC$347,2,FALSE) ->  | BM75: 0
BB76: Vs | BC76: =BC25*BC56*BC9*0.001 -> 3.905717091 | BD76: k/ft | BK76: =AVERAGE(BK75,BK77) -> 9.84249 | BL76: =BL75 ->  | BM76: 3.157894737
H77: Results - MSE Wall Design | BB77: MVs | BC77: =BC76*BC9*0.5 -> 38.44198141 | BD77: k-ft/ft | BK77: =$BQ$8 -> 19.68498 | BM77: 6.315789474
BB78: MF2 | BC78: =BC61*BC49/2 -> 35.58949418 | BD78: k-ft/ft | BJ78: Layer 14 | BK78: =$BQ$5 -> 0 | BL78: =$BC$42-VLOOKUP(BJ78,$BB$298:$BC$347,2,FALSE) ->  | BM78: 0
H79: Sliding of the MSE Wall | BK79: =AVERAGE(BK78,BK80) -> 9.84249 | BL79: =BL78 ->  | BM79: 3.157894737
BB80: Load Combinations | BK80: =$BQ$8 -> 19.68498 | BM80: 6.315789474
P81: Str 1 (Max) | T81: Str 1 (Min) | X81: Critical | BB81: Load Factors EV | BJ81: Layer 15 | BK81: =$BQ$5 -> 0 | BL81: =$BC$42-VLOOKUP(BJ81,$BB$298:$BC$347,2,FALSE) ->  | BM81: 0
H82: Sliding Force | P82: =ROUNDUP(BC115*1.3558179483314,2)&" kN/m" -> 44.81 kN/m | T82: =ROUNDUP(BC127*1.3558179483314,2)&" kN/m" -> 29.03 kN/m | X82: =ROUNDUP(BC144*1.3558179483314,2)&" kN/m" -> 48.26 kN/m | BB82: Strength 1 (Max) | BC82: =$N$40 -> 1.35 | BK82: =AVERAGE(BK81,BK83) -> 9.84249 | BL82: =BL81 ->  | BM82: 3.157894737
H83: Sliding Resistance | P83: =ROUNDUP(BC124*1.3558179483314,2)&" kN/m" -> 78.35 kN/m | T83: =ROUNDUP(BC136*1.3558179483314,2)&" kN/m" -> 56.44 kN/m | X83: =ROUNDUP(BC145*1.3558179483314,2)&" kN/m" -> 55.91 kN/m | BB83: Strength 2 (Min) | BC83: =$N$41 -> 1 | BK83: =$BQ$8 -> 19.68498 | BM83: 6.315789474
H84: Utilisation | P84: =BC125 -> 0.5719153742 | T84: =BC137 -> 0.5144000729 | X84: =BC146 -> 0.8630415732 | AF84: =IF(MAX(P84:AA84)>1,"Not Valid","Valid") -> Valid | BB84: Service 1 | BC84: =$N$42 -> 1 | BJ84: Layer 16 | BK84: =$BQ$5 -> 0 | BL84: =$BC$42-VLOOKUP(BJ84,$BB$298:$BC$347,2,FALSE) ->  | BM84: 0
BB85: Load Factors ES | BK85: =AVERAGE(BK84,BK86) -> 9.84249 | BL85: =BL84 ->  | BM85: 3.157894737
H86: Eccentricity of the MSE Wall | BB86: Strength 1 (Max) | BC86: =$N$44 -> 1.5 | BK86: =$BQ$8 -> 19.68498 | BM86: 6.315789474
BB87: Strength 2 (Min) | BC87: =$N$45 -> 0.75 | BJ87: Layer 17 | BK87: =$BQ$5 -> 0 | BL87: =$BC$42-VLOOKUP(BJ87,$BB$298:$BC$347,2,FALSE) ->  | BM87: 0
P88: Str 1 (Max) | T88: Str 1 (Min) | X88: Critical | BB88: Service 1 | BC88: =$N$46 -> 1 | BK88: =AVERAGE(BK87,BK89) -> 9.84249 | BL88: =BL87 ->  | BM88: 3.157894737
H89: Total Overturning Moments | P89: =ROUNDUP(BC162*0.4133088,1)&" kNm/m" -> 54.4 kNm/m | T89: =ROUNDUP(BC176*0.4133088,1)&" kNm/m" -> 37.1 kNm/m | X89: =ROUNDUP(BC185*0.4133088,1)&" kNm/m" -> 48.8 kNm/m | BB89: Load Factors EH | BK89: =$BQ$8 -> 19.68498 | BM89: 6.315789474
H90: Total Resisting Moments | P90: =ROUNDUP(BC161*0.4133088,1)&" kNm/m" -> 163 kNm/m | T90: =ROUNDUP(BC175*0.4133088,1)&" kNm/m" -> 107.9 kNm/m | X90: =ROUNDUP(BC186*0.4133088,1)&" kNm/m" -> 163 kNm/m | BB90: Strength 1 (Max) | BC90: =$AB$40 -> 1.5 | BJ90: Layer 18 | BK90: =$BQ$5 -> 0 | BL90: =$BC$42-VLOOKUP(BJ90,$BB$298:$BC$347,2,FALSE) ->  | BM90: 0
H91: Net Moment | P91: =ROUNDUP(BC163*0.4133088,1)&" kNm/m" -> 108.7 kNm/m | T91: =ROUNDUP(BC177*0.4133088,1)&" kNm/m" -> 70.8 kNm/m | X91: =ROUNDUP(BC187*0.4133088,1)&" kNm/m" -> 114.3 kNm/m | BB91: Strength 2 (Min) | BC91: =$AB$41 -> 0.9 | BK91: =AVERAGE(BK90,BK92) -> 9.84249 | BL91: =BL90 ->  | BM91: 3.157894737
H92: Total Vertical Forces | P92: =ROUNDUP(BC158*1.3558179483314,2)&" kN/m" -> 126.9 kN/m | T92: =ROUNDUP(BC172*1.3558179483314,2)&" kN/m" -> 92.94 kN/m | X92: =ROUNDUP(BC188*1.3558179483314,2)&" kN/m" -> 96.84 kN/m | BB92: Service 1 | BC92: =$AB$42 -> 1 | BK92: =$BQ$8 -> 19.68498 | BM92: 6.315789474
H93: Eccentricity of Resultant | P93: =ROUNDUP(BC165*0.3048,2)&" m" -> 0.86 m | T93: =ROUNDUP(BC179*0.3048,2)&" m" -> 0.77 m | X93: =ROUNDUP(BC190*0.3048,2)&" m" -> 1.18 m | BJ93: Layer 19 | BK93: =$BQ$5 -> 0 | BL93: =$BC$42-VLOOKUP(BJ93,$BB$298:$BC$347,2,FALSE) ->  | BM93: 0
H94: Limiting Eccentricity | P94: =ROUNDUP(BC166*0.3048,2)&" m" -> 1.5 m | T94: =ROUNDUP(BC180*0.3048,2)&" m" -> 1.5 m | X94: =ROUNDUP(BC191*0.3048,2)&" m" -> 1.5 m | BB94: Load Factors LL | BK94: =AVERAGE(BK93,BK95) -> 9.84249 | BL94: =BL93 ->  | BM94: 3.157894737
H95: Utilisation | P95: =BC167 -> 0.5706924039 | T95: =BC181 -> 0.5077330325 | X95: =BC197 -> 0.7861261304 | AF95: =IF(MAX(P95:AA95)>1,"Not Valid","Valid") -> Valid | BB95: Strength 1 (Max) | BC95: =$AB$44 -> 1.75 | BK95: =$BQ$8 -> 19.68498 | BM95: 6.315789474
BB96: Strength 2 (Min) | BC96: =$AB$45 -> 1.75 | BJ96: Layer 20 | BK96: =$BQ$5 -> 0 | BL96: =$BC$42-VLOOKUP(BJ96,$BB$298:$BC$347,2,FALSE) ->  | BM96: 0
H97: Bearing Resistance at Base of MSE Wall | AW97: 0.4133088 | BB97: Service 1 | BC97: =$AB$46 -> 1 | BK97: =AVERAGE(BK96,BK98) -> 9.84249 | BL97: =BL96 ->  | BM97: 3.157894737
BK98: =$BQ$8 -> 19.68498 | BM98: 6.315789474
P99: Str 1 (Max) | T99: Str 1 (Min) | X99: Ser 1 | AB99: Critical | BB99: Resistance Factors | BJ99: Layer 21 | BK99: =$BQ$5 -> 0 | BL99: =$BC$42-VLOOKUP(BJ99,$BB$298:$BC$347,2,FALSE) ->  | BM99: 0
H100: Total Overturning Moment | P100: =ROUNDUP(BC213*0.4133088,1)&" kNm/m" -> 54.4 kNm/m | T100: =ROUNDUP(BC232*0.4133088,1)&" kNm/m" -> 37.1 kNm/m | X100: =ROUNDUP(BC251*0.4133088,1)&" kNm/m" -> 39 kNm/m | AB100: =ROUNDUP(BC264*0.4133088,1)&" kNm/m" -> 54.4 kNm/m | BB100: Sliding of MSE Wall on Foundation Soil, φs | BC100: =$V$50 -> 1 | BK100: =AVERAGE(BK99,BK101) -> 9.84249 | BL100: =BL99 ->  | BM100: 3.157894737
H101: Total Resisting Moment | P101: =ROUNDUP(BC212*0.4133088,1)&" kNm/m" -> 163 kNm/m | T101: =ROUNDUP(BC231*0.4133088,1)&" kNm/m" -> 107.9 kNm/m | X101: =ROUNDUP(BC250*0.4133088,1)&" kNm/m" -> 117.1 kNm/m | AB101: =ROUNDUP(BC265*0.4133088,1)&" kNm/m" -> 163 kNm/m | BB101: Bearing Resistance, φb | BC101: =$V$51 -> 0.65 | BK101: =$BQ$8 -> 19.68498 | BM101: 6.315789474
H102: Net Moment | P102: =ROUNDUP(BC214*0.4133088,1)&" kNm/m" -> 108.7 kNm/m | T102: =ROUNDUP(BC233*0.4133088,1)&" kNm/m" -> 70.8 kNm/m | X102: =ROUNDUP(BC252*0.4133088,1)&" kNm/m" -> 78.1 kNm/m | AB102: =ROUNDUP(BC266*0.4133088,1)&" kNm/m" -> 108.7 kNm/m | BB102: Tensile Resistance & Connectors, φt | BC102: =$V$52 -> 0.9 | BJ102: Layer 22 | BK102: =$BQ$5 -> 0 | BL102: =$BC$42-VLOOKUP(BJ102,$BB$298:$BC$347,2,FALSE) ->  | BM102: 0
H103: Total Vertical Forces | P103: =ROUNDUP(BC209*1.3558179483314,2)&" kN/m" -> 126.9 kN/m | T103: =ROUNDUP(BC228*1.3558179483314,2)&" kN/m" -> 92.94 kN/m | X103: =ROUNDUP(BC247*1.3558179483314,2)&" kN/m" -> 93.59 kN/m | AB103: =ROUNDUP(BC267*1.3558179483314,2)&" kN/m" -> 126.9 kN/m | BB103: Pullout Resistance, φp | BC103: =$V$53 -> 0.9 | BK103: =AVERAGE(BK102,BK104) -> 9.84249 | BL103: =BL102 ->  | BM103: =$BS$4/MAX($BQ$5:$BR$36)*BK103 -> 3.157894737 | BN103: =IFERROR($BS$4/MAX($BQ$5:$BR$36)*BL103,NA()) -> 
H104: Eccentricity of Resultant | P104: =ROUNDUP(BC216*0.3048,2)&" m" -> 0.86 m | T104: =ROUNDUP(BC235*0.3048,2)&" m" -> 0.77 m | X104: =ROUNDUP(BC254*0.3048,2)&" m" -> 0.84 m | AB104: =ROUNDUP(BC269*0.3048,2)&" m" -> 0.86 m | BK104: =$BQ$8 -> 19.68498 | BM104: 6.315789474
H105: Limiting Eccentricity | P105: =ROUNDUP(BC217*0.3048,2)&" m" -> 1.5 m | T105: =ROUNDUP(BC236*0.3048,2)&" m" -> 1.5 m | X105: =ROUNDUP(BC255*0.3048,2)&" m" -> 1 m | AB105: =ROUNDUP(BC270*0.3048,2)&" m" -> 1.5 m | BB105: Sliding Stability | BJ105: Layer 23 | BK105: =$BQ$5 -> 0 | BL105: =$BC$42-VLOOKUP(BJ105,$BB$298:$BC$347,2,FALSE) ->  | BM105: 0
H106: Utilisation | P106: =BC218 -> 0.5706924039 | T106: =BC237 -> 0.5077330325 | X106: =BC256 -> 0.8336185736 | AB106: =BC271 -> 0.5706924039 | BB106: Factored Resistance against failure by sliding | BK106: =AVERAGE(BK105,BK107) -> 9.84249 | BL106: =BL105 ->  | BM106: 3.157894737
H107: Effective Width of Footing | P107: =ROUNDUP(BC219*0.3048,2)&" m" -> 4.29 m | T107: =ROUNDUP(BC238*0.3048,2)&" m" -> 4.48 m | X107: =ROUNDUP(BC257*0.3048,2)&" m" -> 4.34 m | AB107: =ROUNDUP(BC272*0.3048,2)&" m" -> 4.29 m | BB107: Maximum Load Factor, γLS | BC107: =$V$54 -> 1.75 | BE107: Not required for slopes, no surcharge loads | BK107: =$BQ$8 -> 19.68498 | BM107: 6.315789474
H108: Bearing Stress | P108: =ROUNDUP(BC220/0.020885434273039,2)&" kN/m2" -> 318.56 kN/m2 | T108: =ROUNDUP(BC239/0.020885434273039,2)&" kN/m2" -> 223.45 kN/m2 | X108: =ROUNDUP(BC258/0.020885434273039,2)&" kN/m2" -> 232.5 kN/m2 | AB108: =ROUNDUP(BC273/0.020885434273039,2)&" kN/m2" -> 318.56 kN/m2 | BB108: Factored Driving Force, Pd | BC108: =IF(OR(BC6=0,BC10="Yes"),BC90*BC58+BC107*BC62,BC90*BC67) -> 35.58910856 | BD108: k/lft | BJ108: Layer 24 | BK108: =$BQ$5 -> 0 | BL108: =$BC$42-VLOOKUP(BJ108,$BB$298:$BC$347,2,FALSE) ->  | BM108: 0
H109: Fac. Bearing Resistance | P109: =ROUNDUP(BC221/0.020885434273039,2)&" kN/m2" -> 400 kN/m2 | T109: =ROUNDUP(BC240/0.020885434273039,2)&" kN/m2" -> 400 kN/m2 | X109: =ROUNDUP(BC259/0.020885434273039,2)&" kN/m2" -> 300 kN/m2 | AB109: =ROUNDUP(BC274/0.020885434273039,2)&" kN/m2" -> 400 kN/m2 | BB109: μ | BC109: =TAN(RADIANS(BC24)) -> 0.5773502692 | BK109: =AVERAGE(BK108,BK110) -> 9.84249 | BL109: =BL108 ->  | BM109: 3.157894737
H110: Utilisation | P110: =BC223 -> 0.79638482 | T110: =BC242 -> 0.5586124164 | X110: =BC261 -> 0.7749681331 | AB110: =BC276 -> 0.79638482 | AF110: =IF(MAX(P110:AE110,P106:AE106)>1,"Not Valid","Valid") -> Valid | BB110: Factored Sliding Resistance, Rr | BC110: =IF(BC6=0,BC83*BC64*BC109,(BC83*(BC64+BC65)+BC90*BC59+BC107*(BC63))*BC109) -> 41.23684149 | BD110: k/lft | BK110: =$BQ$8 -> 19.68498 | BM110: 6.315789474
BB111: Utilisation | BC111: =BC108/BC110 -> 0.8630415732 | BJ111: Layer 25 | BK111: =$BQ$5 -> 0 | BL111: =$BC$42-VLOOKUP(BJ111,$BB$298:$BC$347,2,FALSE) ->  | BM111: 0
B112: Your Logo / Company Details Here | G112: Project: | AF112: By: | BC112: =IF(BC111>1,"Not Valid","Valid") -> Valid | BK112: =AVERAGE(BK111,BK113) -> 9.84249 | BL112: =BL111 ->  | BM112: 3.157894737
G113: Calculation: | M113: Miragrid MSE Wall Design | BK113: =$BQ$8 -> 19.68498 | BM113: 6.315789474
G114: FHWA NHI-10-025 | AF114: Approved: | BC114: Str1 | BJ114: Layer 26 | BK114: =$BQ$5 -> 0 | BL114: =$BC$42-VLOOKUP(BJ114,$BB$298:$BC$347,2,FALSE) ->  | BM114: 0
G115: Sheet Number: | M115: 4 | T115: Date: | BB115: Lateral Load on MSE Wall, Hm | BC115: =BC73*BC90+BC61*BC95 -> 33.04952179 | BD115: k/ft | BK115: =AVERAGE(BK114,BK116) -> 9.84249 | BL115: =BL114 ->  | BM115: 3.157894737
BB116: Vertical Load at Base of MSE Wall, VA1 | BC116: =(BC64+BC65)*BC82 -> 85.51928835 | BD116: k/ft | BK116: =$BQ$8 -> 19.68498 | BM116: 6.315789474
H117: Results - Design of Soil Reinforcements | BB117: Vertical Load at Base of MSE Wall, VA2 | BC117: =BC71*BC90 -> 14.57148293 | BD117: k/ft | BJ117: Layer 27 | BK117: =$BQ$5 -> 0 | BL117: =$BC$42-VLOOKUP(BJ117,$BB$298:$BC$347,2,FALSE) ->  | BM117: 0
BB118: Total Vertical Load at Base of MSE Wall, VA | BC118: =BC117+BC116 -> 100.0907713 | BD118: k/ft | BK118: =AVERAGE(BK117,BK119) -> 9.84249 | BL118: =BL117 ->  | BM118: 3.157894737
H119: Z | K119: σH | N119: Tmax | Q119: Geogrid Type | V119: Tr | Y119: Le | AB119: Req. Le | AE119: Utilisation | BB119: Nominal Sliding Resistance at Base of MSE Wall, VNm1 | BC119: =TAN(RADIANS(MIN(BC24,BC30)))*(BC64+BC65)*BC82 -> 49.37458415 | BD119: k/ft | BK119: =$BQ$8 -> 19.68498 | BM119: 6.315789474
E120: Level 1 | H120: =IFERROR(BC298*0.3048,"") -> 0.1999993968 | K120: =IFERROR(BC404*0.001/0.020885434273039,"") -> 14.11124345 | N120: =IFERROR(BC508*0.001*1.3558179483314,"") -> 0.7538097415 | Q120: =IF(H120="","",IF(N120/1.3558179483314<$CH$6,$CI$6,INDEX($CI$6:$CI$14,MATCH(N120/1.3558179483314,$CH$6:$CH$14,1)+1))) -> Miragrid 2XT | V120: =IF(H120="","",VLOOKUP(Q120,$BZ$6:$CH$14,9,FALSE)*1.3558179483314) -> 1.630372713 | Y120: =IFERROR(BC627*0.3048,"") -> 2.591946432 | AB120: =IF(H120="","",BC731*0.3048) -> 0.9144 | AE120: =IF(H120="","",BC783) -> 0.3527850687 | BB120: Nominal Sliding Resistance at Base of MSE Wall, VNm2 | BC120: =TAN(RADIANS(MIN(BC24,BC30)))*BC71*BC90 -> 8.412849593 | BD120: k/ft | BJ120: Layer 28 | BK120: =$BQ$5 -> 0 | BL120: =$BC$42-VLOOKUP(BJ120,$BB$298:$BC$347,2,FALSE) ->  | BM120: 0
E121: Level 2 | H121: =IFERROR(BC299*0.3048,"") -> 0.9499971348 | K121: =IFERROR(BC405*0.001/0.020885434273039,"") -> 18.91543892 | N121: =IFERROR(BC509*0.001*1.3558179483314,"") -> 1.317972361 | Q121: =IF(H121="","",IF(N121/1.3558179483314<$CH$6,$CI$6,INDEX($CI$6:$CI$14,MATCH(N121/1.3558179483314,$CH$6:$CH$14,1)+1))) -> Miragrid 2XT | V121: =IF(H121="","",VLOOKUP(Q121,$BZ$6:$CH$14,9,FALSE)*1.3558179483314) -> 1.630372713 | Y121: =IFERROR(BC628*0.3048,"") -> 2.990727303 | AB121: =IF(H121="","",BC732*0.3048) -> 0.9144 | AE121: 0.305745027 | BB121: Nominal Sliding Resistance at Base of MSE Wall, VNm | BC121: =BC120+BC119 -> 57.78743374 | BD121: k/ft | BK121: =AVERAGE(BK120,BK122) -> 9.84249 | BL121: =BL120 ->  | BM121: 3.157894737
E122: Level 3 | H122: 1.699994873 | K122: 24.35415077 | N122: 1.696925867 | Q122: =IF(H122="","",IF(N122/1.3558179483314<$CH$6,$CI$6,INDEX($CI$6:$CI$14,MATCH(N122/1.3558179483314,$CH$6:$CH$14,1)+1))) -> Miragrid 3XT | V122: 2.853152248 | Y122: 3.389508174 | AB122: 0.9144 | AE122: 0.2697736524 | BB122: Factored Sliding Resistance at Base of MSE Wall, VFm1 | BC122: =BC119*BC100 -> 49.37458415 | BD122: k/ft | BK122: =$BQ$8 -> 19.68498 | BM122: 6.315789474
E123: Level 4 | H123: 2.449992611 | K123: 29.79286262 | N123: 2.075879374 | Q123: =IF(H123="","",IF(N123/1.3558179483314<$CH$6,$CI$6,INDEX($CI$6:$CI$14,MATCH(N123/1.3558179483314,$CH$6:$CH$14,1)+1))) -> Miragrid 3XT | V123: 2.853152248 | Y123: 3.788289045 | AB123: 0.9144 | AE123: 0.2413754571 | BB123: Factored Sliding Resistance at Base of MSE Wall, VFm2 | BC123: =BC120*BC100 -> 8.412849593 | BD123: k/ft | BJ123: Layer 29 | BK123: =$BQ$5 -> 0 | BL123: =$BC$42-VLOOKUP(BJ123,$BB$298:$BC$347,2,FALSE) ->  | BM123: 0
E124: Level 5 | H124: 3.199990349 | K124: 35.23157447 | N124: 2.45483288 | Q124: =IF(H124="","",IF(N124/1.3558179483314<$CH$6,$CI$6,INDEX($CI$6:$CI$14,MATCH(N124/1.3558179483314,$CH$6:$CH$14,1)+1))) -> Miragrid 3XT | V124: 2.853152248 | Y124: 4.187069916 | AB124: 0.9144 | AE124: 0.2183866089 | BB124: Factored Sliding Resistance at Base of MSE Wall, VFm | BC124: =SUM(BC122:BC123) -> 57.78743374 | BD124: k/ft | BK124: =AVERAGE(BK123,BK125) -> 9.84249 | BL124: =BL123 ->  | BM124: 3.157894737
E125: Level 6 | H125: 3.949988087 | K125: 40.67028631 | N125: 2.833786386 | Q125: =IF(H125="","",IF(N125/1.3558179483314<$CH$6,$CI$6,INDEX($CI$6:$CI$14,MATCH(N125/1.3558179483314,$CH$6:$CH$14,1)+1))) -> Miragrid 3XT | V125: 2.853152248 | Y125: 4.585850787 | AB125: 0.9144 | AE125: 0.1993959338 | BB125: Utilisation | BC125: =BC115/BC124 -> 0.5719153742 | BK125: =$BQ$8 -> 19.68498 | BM125: 6.315789474
E126: Level 7 | H126: 4.699985825 | K126: 46.10899816 | N126: 3.212739892 | Q126: =IF(H126="","",IF(N126/1.3558179483314<$CH$6,$CI$6,INDEX($CI$6:$CI$14,MATCH(N126/1.3558179483314,$CH$6:$CH$14,1)+1))) -> Miragrid 5XT | V126: 3.831375876 | Y126: 4.984631658 | AB126: 0.9144 | AE126: 0.1834438456 | BC126: Str2 | BJ126: Layer 30 | BK126: =$BQ$5 -> 0 | BL126: =$BC$42-VLOOKUP(BJ126,$BB$298:$BC$347,2,FALSE) ->  | BM126: 0
E127: Level 8 | H127: 5.449983563 | K127: 51.54771001 | N127: 3.591693398 | Q127: =IF(H127="","",IF(N127/1.3558179483314<$CH$6,$CI$6,INDEX($CI$6:$CI$14,MATCH(N127/1.3558179483314,$CH$6:$CH$14,1)+1))) -> Miragrid 5XT | V127: 3.831375876 | Y127: 5.383412529 | AB127: 0.9144 | AE127: 0.1698550864 | BB127: Lateral Load on MSE Wall, Hm | BC127: =BC73*BC91+BC61*BC96 -> 21.41009018 | BD127: k/ft | BK127: =AVERAGE(BK126,BK128) -> 9.84249 | BL127: =BL126 ->  | BM127: 3.157894737
E128: Level 9 | H128: 6.199981301 | K128: 56.98642186 | N128: 2.514743039 | Q128: =IF(H128="","",IF(N128/1.3558179483314<$CH$6,$CI$6,INDEX($CI$6:$CI$14,MATCH(N128/1.3558179483314,$CH$6:$CH$14,1)+1))) -> Miragrid 3XT | V128: 2.853152248 | Y128: 5.7821934 | AB128: 0.9144 | AE128: 0.1581406807 | BB128: Vertical Load at Base of MSE Wall, VA1 | BC128: =(BC64+BC65)*BC83 -> 63.347621 | BD128: k/ft | BK128: =$BQ$8 -> 19.68498 | BM128: 6.315789474 | BQ128: 0 | BR128: 0 | BS128: =MAX(AE120:AG169) -> 0.3527850687 | BT128: =MAX(#REF!) ->  | BU128: 0 | BV128: 1 | BW128: =MAX(T120:U169) -> 0
E129: Level 10 | H129: 6.409582507 | K129: 58.50637387 | N129: 2.038276353 | Q129: =IF(H129="","",IF(N129/1.3558179483314<$CH$6,$CI$6,INDEX($CI$6:$CI$14,MATCH(N129/1.3558179483314,$CH$6:$CH$14,1)+1))) -> Miragrid 3XT | V129: 2.853152248 | Y129: 5.893640338 | AB129: 0.9144 | AE129: 0.1551502887 | BB129: Vertical Load at Base of MSE Wall, VA2 | BC129: =BC71*BC91 -> 8.742889759 | BD129: k/ft | BJ129: Layer 31 | BK129: =$BQ$5 -> 0 | BL129: =$BC$42-VLOOKUP(BJ129,$BB$298:$BC$347,2,FALSE) ->  | BM129: 0 | BQ129: =Y16 -> 6 | BR129: =X61 -> 0.75 | BS129: =BS128 -> 0.3527850687 | BT129: =BT128 ->  | BU129: 100 | BV129: 1 | BW129: =BW128 -> 0
E130: Level 11 | Q130: =IF(H130="","",IF(N130/1.3558179483314<$CH$6,$CI$6,INDEX($CI$6:$CI$14,MATCH(N130/1.3558179483314,$CH$6:$CH$14,1)+1))) ->  | BB130: Total Vertical Load at Base of MSE Wall, VA | BC130: =BC129+BC128 -> 72.09051076 | BD130: k/ft | BK130: =AVERAGE(BK129,BK131) -> 9.84249 | BL130: =BL129 ->  | BM130: 3.157894737 | BQ130: =BQ129 -> 6 | BR130: =BR129 -> 0.75 | BS130: 0 | BT130: 0 | BW130: 0
E131: Level 12 | Q131: =IF(H131="","",IF(N131/1.3558179483314<$CH$6,$CI$6,INDEX($CI$6:$CI$14,MATCH(N131/1.3558179483314,$CH$6:$CH$14,1)+1))) ->  | BB131: Nominal Sliding Resistance at Base of MSE Wall, VNm1 | BC131: =TAN(RADIANS(MIN(BC24,BC30)))*(BC64+BC65)*BC83 -> 36.57376604 | BD131: k/ft | BK131: =$BQ$8 -> 19.68498 | BM131: 6.315789474
E132: Level 13 | Q132: =IF(H132="","",IF(N132/1.3558179483314<$CH$6,$CI$6,INDEX($CI$6:$CI$14,MATCH(N132/1.3558179483314,$CH$6:$CH$14,1)+1))) ->  | BB132: Nominal Sliding Resistance at Base of MSE Wall, VNm2 | BC132: =TAN(RADIANS(MIN(BC24,BC30)))*BC71*BC91 -> 5.047709756 | BD132: k/ft | BJ132: Layer 32 | BK132: =$BQ$5 -> 0 | BL132: =$BC$42-VLOOKUP(BJ132,$BB$298:$BC$347,2,FALSE) ->  | BM132: 0
E133: Level 14 | Q133: =IF(H133="","",IF(N133/1.3558179483314<$CH$6,$CI$6,INDEX($CI$6:$CI$14,MATCH(N133/1.3558179483314,$CH$6:$CH$14,1)+1))) ->  | BB133: Nominal Sliding Resistance at Base of MSE Wall, VNm | BC133: =BC132+BC131 -> 41.62147579 | BD133: k/ft | BK133: =AVERAGE(BK132,BK134) -> 9.84249 | BL133: =BL132 ->  | BM133: 3.157894737
E134: Level 15 | Q134: =IF(H134="","",IF(N134/1.3558179483314<$CH$6,$CI$6,INDEX($CI$6:$CI$14,MATCH(N134/1.3558179483314,$CH$6:$CH$14,1)+1))) ->  | BB134: Factored Sliding Resistance at Base of MSE Wall, VFm1 | BC134: =BC131*BC100 -> 36.57376604 | BD134: k/ft | BK134: =$BQ$8 -> 19.68498 | BM134: 6.315789474
E135: Level 16 | Q135: =IF(H135="","",IF(N135/1.3558179483314<$CH$6,$CI$6,INDEX($CI$6:$CI$14,MATCH(N135/1.3558179483314,$CH$6:$CH$14,1)+1))) ->  | BB135: Factored Sliding Resistance at Base of MSE Wall, VFm2 | BC135: =BC132*BC100 -> 5.047709756 | BD135: k/ft | BJ135: Layer 33 | BK135: =$BQ$5 -> 0 | BL135: =$BC$42-VLOOKUP(BJ135,$BB$298:$BC$347,2,FALSE) ->  | BM135: =$BS$4/MAX($BQ$5:$BR$36)*BK135 -> 0 | BN135: =IFERROR($BS$4/MAX($BQ$5:$BR$36)*BL135,NA()) -> 
E136: Level 17 | Q136: =IF(H136="","",IF(N136/1.3558179483314<$CH$6,$CI$6,INDEX($CI$6:$CI$14,MATCH(N136/1.3558179483314,$CH$6:$CH$14,1)+1))) ->  | BB136: Factored Sliding Resistance at Base of MSE Wall, VFm | BC136: =SUM(BC134:BC135) -> 41.62147579 | BD136: k/ft | BK136: =AVERAGE(BK135,BK137) -> 9.84249 | BL136: =BL135 ->  | BM136: 3.157894737
E137: Level 18 | Q137: =IF(H137="","",IF(N137/1.3558179483314<$CH$6,$CI$6,INDEX($CI$6:$CI$14,MATCH(N137/1.3558179483314,$CH$6:$CH$14,1)+1))) ->  | BB137: Utilisation | BC137: =BC127/BC136 -> 0.5144000729 | BK137: =$BQ$8 -> 19.68498 | BM137: 6.315789474
E138: Level 19 | Q138: =IF(H138="","",IF(N138/1.3558179483314<$CH$6,$CI$6,INDEX($CI$6:$CI$14,MATCH(N138/1.3558179483314,$CH$6:$CH$14,1)+1))) ->  | BC138: =IF(BC125>1,"Not Valid","Valid") -> Valid | BD138: =IF(BC137>1,"Not Valid","Valid") -> Valid | BJ138: Layer 34 | BK138: =$BQ$5 -> 0 | BL138: =$BC$42-VLOOKUP(BJ138,$BB$298:$BC$347,2,FALSE) ->  | BM138: 0
E139: Level 20 | Q139: =IF(H139="","",IF(N139/1.3558179483314<$CH$6,$CI$6,INDEX($CI$6:$CI$14,MATCH(N139/1.3558179483314,$CH$6:$CH$14,1)+1))) ->  | BB139: Minimum VF | BC139: =BC134+BC123 -> 44.98661563 | BK139: =AVERAGE(BK138,BK140) -> 9.84249 | BL139: =BL138 ->  | BM139: 3.157894737
E140: Level 21 | Q140: =IF(H140="","",IF(N140/1.3558179483314<$CH$6,$CI$6,INDEX($CI$6:$CI$14,MATCH(N140/1.3558179483314,$CH$6:$CH$14,1)+1))) ->  | BB140: Maximum Hm | BC140: =BC115 -> 33.04952179 | BK140: =$BQ$8 -> 19.68498 | BM140: 6.315789474
E141: Level 22 | Q141: =IF(H141="","",IF(N141/1.3558179483314<$CH$6,$CI$6,INDEX($CI$6:$CI$14,MATCH(N141/1.3558179483314,$CH$6:$CH$14,1)+1))) ->  | BC141: =IF(BC139>=BC140,"Valid","Not Valid") -> Valid | BJ141: Layer 35 | BK141: =$BQ$5 -> 0 | BL141: =$BC$42-VLOOKUP(BJ141,$BB$298:$BC$347,2,FALSE) ->  | BM141: 0
E142: Level 23 | Q142: =IF(H142="","",IF(N142/1.3558179483314<$CH$6,$CI$6,INDEX($CI$6:$CI$14,MATCH(N142/1.3558179483314,$CH$6:$CH$14,1)+1))) ->  | BB142: Utilisation | BC142: =BC140/BC139 -> 0.7346523256 | BK142: =AVERAGE(BK141,BK143) -> 9.84249 | BL142: =BL141 ->  | BM142: 3.157894737
E143: Level 24 | Q143: =IF(H143="","",IF(N143/1.3558179483314<$CH$6,$CI$6,INDEX($CI$6:$CI$14,MATCH(N143/1.3558179483314,$CH$6:$CH$14,1)+1))) ->  | BK143: =$BQ$8 -> 19.68498 | BM143: 6.315789474
E144: Level 25 | Q144: =IF(H144="","",IF(N144/1.3558179483314<$CH$6,$CI$6,INDEX($CI$6:$CI$14,MATCH(N144/1.3558179483314,$CH$6:$CH$14,1)+1))) ->  | BB144: Chosen Horizontal Force | BC144: =IF(BC10="Yes",BC108,BC140) -> 35.58910856 | BD144: k/lft | BJ144: Layer 36 | BK144: =$BQ$5 -> 0 | BL144: =$BC$42-VLOOKUP(BJ144,$BB$298:$BC$347,2,FALSE) ->  | BM144: 0
E145: Level 26 | Q145: =IF(H145="","",IF(N145/1.3558179483314<$CH$6,$CI$6,INDEX($CI$6:$CI$14,MATCH(N145/1.3558179483314,$CH$6:$CH$14,1)+1))) ->  | BB145: Chosen Resistance | BC145: =IF(BC10="Yes",BC110,BC139) -> 41.23684149 | BD145: k/lft | BK145: =AVERAGE(BK144,BK146) -> 9.84249 | BL145: =BL144 ->  | BM145: 3.157894737
E146: Level 27 | Q146: =IF(H146="","",IF(N146/1.3558179483314<$CH$6,$CI$6,INDEX($CI$6:$CI$14,MATCH(N146/1.3558179483314,$CH$6:$CH$14,1)+1))) ->  | BB146: Utilisation | BC146: =BC144/BC145 -> 0.8630415732 | BK146: =$BQ$8 -> 19.68498 | BM146: 6.315789474
E147: Level 28 | Q147: =IF(H147="","",IF(N147/1.3558179483314<$CH$6,$CI$6,INDEX($CI$6:$CI$14,MATCH(N147/1.3558179483314,$CH$6:$CH$14,1)+1))) ->  | BC147: =IF(BC146>1,"Not Valid","Valid") -> Valid | BJ147: Layer 37 | BK147: =$BQ$5 -> 0 | BL147: =$BC$42-VLOOKUP(BJ147,$BB$298:$BC$347,2,FALSE) ->  | BM147: 0
E148: Level 29 | Q148: =IF(H148="","",IF(N148/1.3558179483314<$CH$6,$CI$6,INDEX($CI$6:$CI$14,MATCH(N148/1.3558179483314,$CH$6:$CH$14,1)+1))) ->  | BK148: =AVERAGE(BK147,BK149) -> 9.84249 | BL148: =BL147 ->  | BM148: 3.157894737
E149: Level 30 | Q149: =IF(H149="","",IF(N149/1.3558179483314<$CH$6,$CI$6,INDEX($CI$6:$CI$14,MATCH(N149/1.3558179483314,$CH$6:$CH$14,1)+1))) ->  | BB149: Eccentricity Limit Check | BK149: =$BQ$8 -> 19.68498 | BM149: 6.315789474
E150: Level 31 | Q150: =IF(H150="","",IF(N150/1.3558179483314<$CH$6,$CI$6,INDEX($CI$6:$CI$14,MATCH(N150/1.3558179483314,$CH$6:$CH$14,1)+1))) ->  | BB150: e | BC150: =(BC90*BC58*(BC46/3)+BC107*BC62*(BC46/2)-BC83*BC64*0-BC83*BC65*(BC9/6)-(BC90*BC59+BC107*BC63)*(BC9/2))/(BC83*BC64+BC83*BC65+BC90*BC59+BC107*BC63) -> 3.868719288 | BD150: ft | BJ150: Layer 38 | BK150: =$BQ$5 -> 0 | BL150: =$BC$42-VLOOKUP(BJ150,$BB$298:$BC$347,2,FALSE) ->  | BM150: 0
E151: Level 32 | Q151: =IF(H151="","",IF(N151/1.3558179483314<$CH$6,$CI$6,INDEX($CI$6:$CI$14,MATCH(N151/1.3558179483314,$CH$6:$CH$14,1)+1))) ->  | BB151: L/4 | BC151: =BC9/4 -> 4.921245 | BD151: ft | BK151: =AVERAGE(BK150,BK152) -> 9.84249 | BL151: =BL150 ->  | BM151: 3.157894737
E152: Level 33 | Q152: =IF(H152="","",IF(N152/1.3558179483314<$CH$6,$CI$6,INDEX($CI$6:$CI$14,MATCH(N152/1.3558179483314,$CH$6:$CH$14,1)+1))) ->  | AE152: =IF(H152="","",BC815) ->  | BB152: Utilisation | BC152: =BC150/BC151 -> 0.7861261304 | BK152: =$BQ$8 -> 19.68498 | BM152: 6.315789474
E153: Level 34 | Q153: =IF(H153="","",IF(N153/1.3558179483314<$CH$6,$CI$6,INDEX($CI$6:$CI$14,MATCH(N153/1.3558179483314,$CH$6:$CH$14,1)+1))) ->  | BC153: =IF(BC152>1,"Not Valid","Valid") -> Valid | BJ153: Layer 39 | BK153: =$BQ$5 -> 0 | BL153: =$BC$42-VLOOKUP(BJ153,$BB$298:$BC$347,2,FALSE) ->  | BM153: 0
E154: Level 35 | Q154: =IF(H154="","",IF(N154/1.3558179483314<$CH$6,$CI$6,INDEX($CI$6:$CI$14,MATCH(N154/1.3558179483314,$CH$6:$CH$14,1)+1))) ->  | BK154: =AVERAGE(BK153,BK155) -> 9.84249 | BL154: =BL153 ->  | BM154: 3.157894737
E155: Level 36 | Q155: =IF(H155="","",IF(N155/1.3558179483314<$CH$6,$CI$6,INDEX($CI$6:$CI$14,MATCH(N155/1.3558179483314,$CH$6:$CH$14,1)+1))) ->  | BC155: Str1 | BK155: =$BQ$8 -> 19.68498 | BM155: 6.315789474
E156: Level 37 | Q156: =IF(H156="","",IF(N156/1.3558179483314<$CH$6,$CI$6,INDEX($CI$6:$CI$14,MATCH(N156/1.3558179483314,$CH$6:$CH$14,1)+1))) ->  | BB156: Vertical Load at Base of MSE Wall, VA1 | BC156: =(BC64+BC65)*BC82 -> 85.51928835 | BD156: k/ft | BJ156: Layer 40 | BK156: =$BQ$5 -> 0 | BL156: =$BC$42-VLOOKUP(BJ156,$BB$298:$BC$347,2,FALSE) ->  | BM156: 0
E157: Level 38 | Q157: =IF(H157="","",IF(N157/1.3558179483314<$CH$6,$CI$6,INDEX($CI$6:$CI$14,MATCH(N157/1.3558179483314,$CH$6:$CH$14,1)+1))) ->  | BB157: Vertical Load at Base of MSE Wall, VA2 | BC157: =IF(BC10="Yes",BC90*BC59+BC107*BC63,BC71*BC90) -> 8.076683609 | BD157: k/ft | BK157: =AVERAGE(BK156,BK158) -> 9.84249 | BL157: =BL156 ->  | BM157: 3.157894737
E158: Level 39 | Q158: =IF(H158="","",IF(N158/1.3558179483314<$CH$6,$CI$6,INDEX($CI$6:$CI$14,MATCH(N158/1.3558179483314,$CH$6:$CH$14,1)+1))) ->  | BB158: Total Vertical Load at Base of MSE Wall, VA | BC158: =BC157+BC156 -> 93.59597196 | BD158: k/ft | BK158: =$BQ$8 -> 19.68498 | BM158: 6.315789474
E159: Level 40 | Q159: =IF(H159="","",IF(N159/1.3558179483314<$CH$6,$CI$6,INDEX($CI$6:$CI$14,MATCH(N159/1.3558179483314,$CH$6:$CH$14,1)+1))) ->  | BB159: Resisting Moments About Point A, MRA1 | BC159: =(BC69+BC70)*BC82 -> 893.6194153 | BD159: k-ft/ft | BJ159: Layer 41 | BK159: =$BQ$5 -> 0 | BL159: =$BC$42-VLOOKUP(BJ159,$BB$298:$BC$347,2,FALSE) ->  | BM159: 0
E160: Level 41 | Q160: =IF(H160="","",IF(N160/1.3558179483314<$CH$6,$CI$6,INDEX($CI$6:$CI$14,MATCH(N160/1.3558179483314,$CH$6:$CH$14,1)+1))) ->  | BB160: Resisting Moments About Point A, MRA2 | BC160: =BC72*BC90 -> 286.8393501 | BD160: k-ft/ft | BK160: =AVERAGE(BK159,BK161) -> 9.84249 | BL160: =BL159 ->  | BM160: 3.157894737
E161: Level 42 | Q161: =IF(H161="","",IF(N161/1.3558179483314<$CH$6,$CI$6,INDEX($CI$6:$CI$14,MATCH(N161/1.3558179483314,$CH$6:$CH$14,1)+1))) ->  | BB161: Total Resisting Moment @ Point A, MRA | BC161: =IF(BC10="Yes",BC90*BC58*(BC46/3)+BC107*BC62*(BC46/2),SUM(BC159:BC160)) -> 394.257244 | BD161: k-ft/ft | BK161: =$BQ$8 -> 19.68498 | BM161: 6.315789474
E162: Level 43 | Q162: =IF(H162="","",IF(N162/1.3558179483314<$CH$6,$CI$6,INDEX($CI$6:$CI$14,MATCH(N162/1.3558179483314,$CH$6:$CH$14,1)+1))) ->  | BB162: Overturning Moments about Point A, MOA | BC162: =IF(BC10="Yes",BC82*BC65*(BC3/6)+(BC90*BC59+BC107*BC63)*(BC3/2),BC74*BC90+BC78*BC95) -> 131.3913526 | BD162: k-ft/ft | BJ162: Layer 42 | BK162: =$BQ$5 -> 0 | BL162: =$BC$42-VLOOKUP(BJ162,$BB$298:$BC$347,2,FALSE) ->  | BM162: 0
E163: Level 44 | Q163: =IF(H163="","",IF(N163/1.3558179483314<$CH$6,$CI$6,INDEX($CI$6:$CI$14,MATCH(N163/1.3558179483314,$CH$6:$CH$14,1)+1))) ->  | BB163: Net Moment at Point A, MA | BC163: =BC161-BC162 -> 262.8658914 | BD163: k-ft/ft | BK163: =AVERAGE(BK162,BK164) -> 9.84249 | BL163: =BL162 ->  | BM163: 3.157894737
E164: Level 45 | Q164: =IF(H164="","",IF(N164/1.3558179483314<$CH$6,$CI$6,INDEX($CI$6:$CI$14,MATCH(N164/1.3558179483314,$CH$6:$CH$14,1)+1))) ->  | BB164: Location of the Resultant Force on Base od MSE Wall from Point A, a | BC164: =BC163/BC158 -> 2.808517139 | BD164: ft | BK164: =$BQ$8 -> 19.68498 | BM164: 6.315789474
E165: Level 46 | Q165: =IF(H165="","",IF(N165/1.3558179483314<$CH$6,$CI$6,INDEX($CI$6:$CI$14,MATCH(N165/1.3558179483314,$CH$6:$CH$14,1)+1))) ->  | BB165: Eccentricity of Base of MSE Wall, eL | BC165: =IF(BC10="Yes",BC164,BC9*0.5-BC164) -> 2.808517139 | BD165: ft | BJ165: Layer 43 | BK165: =$BQ$5 -> 0 | BL165: =$BC$42-VLOOKUP(BJ165,$BB$298:$BC$347,2,FALSE) ->  | BM165: 0
E166: Level 47 | Q166: =IF(H166="","",IF(N166/1.3558179483314<$CH$6,$CI$6,INDEX($CI$6:$CI$14,MATCH(N166/1.3558179483314,$CH$6:$CH$14,1)+1))) ->  | BB166: Limiting Eccentricity, e | BC166: =BC9/4 -> 4.921245 | BD166: ft | BK166: =AVERAGE(BK165,BK167) -> 9.84249 | BL166: =BL165 ->  | BM166: 3.157894737
E167: Level 48 | Q167: =IF(H167="","",IF(N167/1.3558179483314<$CH$6,$CI$6,INDEX($CI$6:$CI$14,MATCH(N167/1.3558179483314,$CH$6:$CH$14,1)+1))) ->  | BC167: =BC165/BC166 -> 0.5706924039 | BK167: =$BQ$8 -> 19.68498 | BM167: =$BS$4/MAX($BQ$5:$BR$36)*BK167 -> 6.315789474 | BN167: =IFERROR($BS$4/MAX($BQ$5:$BR$36)*BL167,NA()) -> 
E168: Level 49 | Q168: =IF(H168="","",IF(N168/1.3558179483314<$CH$6,$CI$6,INDEX($CI$6:$CI$14,MATCH(N168/1.3558179483314,$CH$6:$CH$14,1)+1))) ->  | BB168: Calculated eL/L | BC168: =BC165/BC9 -> 0.142673101 | BJ168: Layer 44 | BK168: =$BQ$5 -> 0 | BL168: =$BC$42-VLOOKUP(BJ168,$BB$298:$BC$347,2,FALSE) ->  | BM168: 0
E169: Level 50 | Q169: =IF(H169="","",IF(N169/1.3558179483314<$CH$6,$CI$6,INDEX($CI$6:$CI$14,MATCH(N169/1.3558179483314,$CH$6:$CH$14,1)+1))) ->  | BC169: Str2 | BK169: =AVERAGE(BK168,BK170) -> 9.84249 | BL169: =BL168 ->  | BM169: 3.157894737
BB170: Vertical Load at Base of MSE Wall, VA1 | BC170: =(BC64+BC65)*BC83 -> 63.347621 | BD170: k/ft | BK170: =$BQ$8 -> 19.68498 | BM170: 6.315789474
BB171: Vertical Load at Base of MSE Wall, VA2 | BC171: =IF(BC10="Yes",BC91*BC59+BC107*BC63,BC71*BC91) -> 5.195771218 | BD171: k/ft | BJ171: Layer 45 | BK171: =$BQ$5 -> 0 | BL171: =$BC$42-VLOOKUP(BJ171,$BB$298:$BC$347,2,FALSE) ->  | BM171: 0
BB172: Total Vertical Load at Base of MSE Wall, VA | BC172: =BC171+BC170 -> 68.54339222 | BD172: k/ft | BK172: =AVERAGE(BK171,BK173) -> 9.84249 | BL172: =BL171 ->  | BM172: 3.157894737
BB173: Resisting Moments About Point A, MRA1 | BC173: =(BC69+BC70)*BC83 -> 661.9403076 | BD173: k-ft/ft | BK173: =$BQ$8 -> 19.68498 | BM173: 6.315789474
BB174: Resisting Moments About Point A, MRA2 | BC174: =BC72*BC91 -> 172.1036101 | BD174: k-ft/ft | BJ174: Layer 46 | BK174: =$BQ$5 -> 0 | BL174: =$BC$42-VLOOKUP(BJ174,$BB$298:$BC$347,2,FALSE) ->  | BM174: 0
BB175: Total Resisting Moment @ Point A, MRA | BC175: =IF(BC10="Yes",BC91*BC58*(BC46/3)+BC107*BC62*(BC46/2),SUM(BC173:BC174)) -> 260.8492182 | BD175: k-ft/ft | BK175: =AVERAGE(BK174,BK176) -> 9.84249 | BL175: =BL174 ->  | BM175: 3.157894737
BB176: Overturning Moments about Point A, MOA | BC176: =IF(BC10="Yes",BC83*BC65*(BC3/6)+(BC91*BC59+BC107*BC63)*(BC3/2),BC74*BC91+BC78*BC96) -> 89.58130767 | BD176: k-ft/ft | BK176: =$BQ$8 -> 19.68498 | BM176: 6.315789474
BB177: Net Moment at Point A, MA | BC177: =BC175-BC176 -> 171.2679105 | BD177: k-ft/ft | BJ177: Layer 47 | BK177: =$BQ$5 -> 0 | BL177: =$BC$42-VLOOKUP(BJ177,$BB$298:$BC$347,2,FALSE) ->  | BM177: 0
BB178: Location of the Resultant Force on Base od MSE Wall from Point A, a | BC178: =BC177/BC172 -> 2.498678647 | BD178: ft | BK178: =AVERAGE(BK177,BK179) -> 9.84249 | BL178: =BL177 ->  | BM178: 3.157894737
BB179: Eccentricity of Base of MSE Wall, eL | BC179: =IF(BC10="Yes",BC178,BC9*0.5-BC178) -> 2.498678647 | BD179: ft | BK179: =$BQ$8 -> 19.68498 | BM179: 6.315789474
BB180: Limiting Eccentricity, e | BC180: =BC9/4 -> 4.921245 | BD180: ft | BJ180: Layer 48 | BK180: =$BQ$5 -> 0 | BL180: =$BC$42-VLOOKUP(BJ180,$BB$298:$BC$347,2,FALSE) ->  | BM180: 0
BC181: =BC179/BC180 -> 0.5077330325 | BK181: =AVERAGE(BK180,BK182) -> 9.84249 | BL181: =BL180 ->  | BM181: 3.157894737
BB182: Calculated eL/L | BC182: =BC179/BC9 -> 0.1269332581 | BK182: =$BQ$8 -> 19.68498 | BM182: 6.315789474
BJ183: Layer 49 | BK183: =$BQ$5 -> 0 | BL183: =$BC$42-VLOOKUP(BJ183,$BB$298:$BC$347,2,FALSE) ->  | BM183: 0
BB184: Critical Values | BK184: =AVERAGE(BK183,BK185) -> 9.84249 | BL184: =BL183 ->  | BM184: 3.157894737
BB185: Overturning Moments about Point A, MOA-C | BC185: =IF(BC10="Yes",BC83*BC65*(BC3/6)+(BC90*BC59+BC107*BC63)*(BC3/2),BC162) -> 117.9366591 | BD185: k-ft/ft | BK185: =$BQ$8 -> 19.68498 | BM185: 6.315789474
BB186: Resisting Moments about Point A, MRA-C | BC186: =IF(BC10="Yes",BC90*BC58*(BC46/3)+BC107*BC62*(BC46/2),BC173+BC160) -> 394.257244 | BD186: k-ft/ft | BJ186: Layer 50 | BK186: =$BQ$5 -> 0 | BL186: =$BC$42-VLOOKUP(BJ186,$BB$298:$BC$347,2,FALSE) ->  | BM186: 0
BB187: Net Moment about Point A, MA-C | BC187: =BC186-BC185 -> 276.3205849 | BD187: k-ft/ft | BK187: =AVERAGE(BK186,BK188) -> 9.84249 | BL187: =BL186 ->  | BM187: 3.157894737
BB188: Vertical Force, VA-C | BC188: =IF(BC10="Yes",BC83*BC64+BC83*BC65+BC90*BC59+BC107*BC63,BC170+BC157) -> 71.42430461 | BD188: k/ft | BK188: =$BQ$8 -> 19.68498 | BM188: 6.315789474
BB189: Location of Resultant from Point A, anl | BC189: =BC187/BC188 -> 3.868719288 | BD189: ft
BB190: Eccentricity from Centre of Wall Base, eL | BC190: =IF(BC10="Yes",BC189,0.5*BC9-BC189) -> 3.868719288 | BD190: ft
BB191: Limiting Eccentricity, e | BC191: =BC180 -> 4.921245
BC192: =IF(BC191>=BC190,"Valid","Not Valid") -> Valid
BB193: Effective Width of Base of MSE Wall, B' | BC193: =BC9-2*BC190 -> 11.94754142 | BD193: ft
BB194: Utilisation | BC194: =BC190/BC191 -> 0.7861261304
BB196: Chosen Eccentricity | BC196: =IF(BC10="Yes",BC150,BC190) -> 3.868719288 | BD196: ft
BB197: Utilisation | BC197: =BC196/BC191 -> 0.7861261304
BB199: Bearing on Foundation
BB200: eB | BC200: =(BC90*BC58*(BC46/3)+BC107*BC62*(BC46/2)-BC82*BC64*0-BC82*BC65*(BC9/6)-(BC90*BC59+BC107*BC63)*(BC9/2))/(BC82*BC64+BC82*BC65+BC90*BC59+BC107*BC63) -> 2.808517139 | BD200: ft
BB201: Factored Vertical Stress at Base, qV-F | BC201: =(BC82*BC64+BC82*BC65+BC90*BC59+BC107*BC63)/(BC9-2*BC200) -> 6.653137125 | BD201: ksf
BB202: Factored Bearing Resistance, qR | BC202: =BC28 -> 8.354173709 | BD202: ksf
... 778 more rows
